bitfinex-derivatives/quotes_ETHF0:USTF0_20250928
["timestamp","ask_amount","ask_price","bid_price","bid_amount"]
[1759024389346,0.00269578,3999.7,3999.4,3.2078]
[1759024389347,0.1319,3999.5,3999.4,3.2078]
[1759024389552,0.5692,3999.5,3999.4,3.4618]
[1759024389843,0.8885,3999.5,3999.4,3.4618]
[1759024390648,0.8885,3999.5,3999.4,0.254]
[1759024391945,0.8885,3999.5,3999.4,0.4696]
[1759024392740,0.8885,3999.5,3999.4,1.0069]
[1759024394543,0.8885,3999.5,3999.4,0.6974]
[1759024396945,0.8885,3999.5,3999.4,1.0069]
[1759024397147,0.7566,3999.5,3999.4,1.0069]
[1759024397648,0.8885,3999.5,3999.4,1.0069]
[1759024400151,0.3193,3999.5,3999.4,1.0069]
[1759024400451,0.75929578,3999.7,3999.6,0.7529]
[1759024400852,0.75929578,3999.7,3999.5,0.44979]
[1759024401249,0.7566,3999.6,3999.5,0.44979]
[1759024402554,0.7566,3999.6,3999.5,1.58868118]
[1759024403553,0.3193,3999.6,3999.5,1.58868118]
[1759024403946,0.00269578,3999.7,3999.5,1.58868118]
[1759024404146,0.3163,3999.6,3999.5,1.58868118]
[1759024407945,0.00269578,3999.7,3999.5,1.58868118]
[1759024408144,0.31899578,3999.7,3999.5,1.58868118]
[1759024408954,0.31899578,3999.7,3999.6,0.44978]
[1759024409556,0.00269578,3999.7,3999.6,5.44978]
[1759024410055,0.31899578,3999.7,3999.6,5.70378]
[1759024419371,0.00269578,3999.7,3999.6,0.70378]
[1759024419865,0.31899578,3999.7,3999.6,0.70378]
[1759024423566,0.31899578,3999.7,3999.6,2.69718311]
[1759024423766,0.76039578,3999.7,3999.6,0.44978]
[1759024423970,0.76039578,3999.7,3999.6,0.70378]
[1759024424170,0.76039578,3999.7,3999.5,1.13889118]
[1759024424171,0.3163,3999.6,3999.5,1.13889118]
[1759024424371,0.7577,3999.6,3999.5,0.254]
[1759024425068,0.7577,3999.6,3999.5,0.70379]
[1759024426773,0.7577,3999.6,3999.5,1.84268118]
[1759024431373,0.3163,3999.6,3999.5,1.84268118]
[1759024431688,0.00269578,3999.7,3999.5,1.84268118]
[1759024431689,0.00269578,3999.7,3999.6,0.44978]
[1759024432574,0.00269578,3999.7,3999.6,1.86681251]
[1759024436373,0.33829578,3999.7,3999.6,1.86681251]
[1759024436574,0.55779578,3999.7,3999.6,1.86681251]
[1759024439880,0.77459578,3999.7,3999.6,1.86681251]
[1759024443072,0.77459578,3999.7,3999.6,0.44978]
[1759024443278,0.5666,3999.5,3999.4,0.4498]
[1759024443477,0.9022,3999.5,3999.4,0.7028]
[1759024444191,5.9022,3999.5,3999.4,0.253]
[1759024449874,0.9022,3999.5,3999.4,0.253]
[1759024450179,0.9022,3999.5,3999.4,3.4608]
[1759024450581,0.6854,3999.5,3999.4,3.4608]
[1759024452885,0.4659,3999.5,3999.4,3.4608]
[1759024455782,0.31869578,3999.7,3999.5,0.44979]
[1759024456086,0.31869578,3999.7,3999.6,1.67003251]
[1759024457586,0.75979578,3999.7,3999.5,0.44979]
[1759024457881,0.8834,3999.5,3999.4,3.2078]
[1759024458075,0.8834,3999.5,3999.4,3.4608]
[1759024460880,0.8834,3999.5,3999.1,1.41703251]
[1759024460881,0.4423,3999.0,3998.9,3.65765]
[1759024461085,0.8834,3999.0,3998.9,3.91065]
[1759024462178,0.6566,3999.0,3998.9,3.91065]
[1759024466486,0.4423,3999.0,3998.9,3.91065]
[1759024468494,0.6685,3999.0,3998.9,3.91065]
[1759024475197,0.8749,3999.0,3998.9,3.91065]
[1759024475401,0.8749,3999.0,3998.9,4.87783251]
[1759024475999,0.8749,3999.0,3998.9,5.32769251]
[1759024476504,0.8749,3999.0,3998.9,4.87783251]
[1759024478498,0.8749,3999.0,3998.9,3.4608]
[1759024480200,0.8749,3999.0,3998.9,4.87783251]
[1759024481304,0.8749,3999.0,3998.9,5.32769251]
[1759024481900,0.8749,3999.0,3998.9,4.87783251]
[1759024482195,0.8749,3999.0,3998.9,5.32769251]
[1759024483707,0.8749,3999.0,3998.9,4.87783251]
[1759024484608,0.8749,3999.0,3998.9,5.32769251]
[1759024486506,0.8749,3999.0,3998.9,3.91066]
[1759024486708,0.8749,3999.0,3998.9,5.32769251]
[1759024486901,0.8749,3999.0,3998.9,4.87783251]
[1759024487402,0.8749,3999.0,3998.9,5.32769251]
[1759024488912,0.8749,3999.0,3998.9,4.87783251]
[1759024489215,0.8749,3999.0,3998.9,5.32769251]
[1759024490214,0.8749,3999.0,3998.9,4.87783251]
[1759024490614,0.8749,3999.0,3998.9,5.32769251]
[1759024492814,0.8749,3999.0,3998.9,4.87783251]
[1759024493332,0.8749,3999.0,3998.9,5.32769251]
[1759024493521,0.4423,3999.0,3998.9,5.32769251]
[1759024494314,0.6476,3999.0,3998.9,5.32769251]
[1759024494511,0.6476,3999.0,3998.9,5.04844613]
[1759024496424,0.4423,3999.0,3998.9,5.04844613]
[1759024499116,0.4613,3999.5,3999.4,0.4498]
[1759024499319,0.4613,3999.5,3999.4,1.84058613]
[1759024501322,0.00269578,3999.7,3999.6,0.44978]
[1759024501515,0.00269578,3999.7,3999.6,0.70278]
[1759024502421,0.00269578,3999.7,3999.6,5.70278]
[1759024502717,0.335,4000.3,4000.2,0.44971]
[1759024502915,0.335,4000.3,4000.2,1.84049613]
[1759024503720,0.33797385,4000.3,4000.2,1.84356458]
[1759024505920,0.54327385,4000.3,4000.2,1.39385458]
[1759024506125,0.76407385,4000.3,4000.2,1.39385458]
[1759024506827,0.76407385,4000.3,4000.2,1.14085458]
[1759024507029,1.90185998,4000.3,4000.2,0.00306845]
[1759024507227,1.90185998,4000.3,4000.2,0.25606845]
[1759024508733,1.90185998,4000.3,3999.8,1.58753613]
[1759024508734,0.7611,3999.9,3999.8,1.58753613]
[1759024508944,0.7611,3999.9,3999.8,1.84053613]
[1759024509825,0.7611,3999.9,3999.8,1.84353058]
[1759024515740,0.7611,3999.9,3999.8,1.39378058]
[1759024516328,0.335,3999.9,3999.8,1.39378058]
[1759024517037,0.335,3999.9,3999.8,1.84353058]
[1759024517635,0.7841,3999.9,3999.8,1.39378058]
[1759024518649,0.7841,3999.9,3999.8,1.84353058]
[1759024519134,0.2254,3999.0,3998.9,4.79544613]
[1759024519342,0.8896,3999.0,3998.9,5.04844613]
[1759024520242,0.8896,3999.0,3998.9,5.05098973]
[1759024520540,1.02255,3999.0,3998.6,1.13778613]
[1759024520839,0.766,3998.7,3998.6,1.13778613]
[1759024521046,0.766,3998.7,3998.6,1.84067613]
[1759024521335,0.766,3998.7,3998.6,1.39078613]
[1759024521539,0.3169,3998.6,3998.5,3.2078]
[1759024521837,0.5406,3998.6,3998.5,3.46289781]
[1759024522141,0.3169,3998.6,3998.5,3.46289781]
[1759024522534,0.5406,3998.6,3998.5,3.46289781]
[1759024525841,0.5406,3998.6,3998.5,0.25509781]
[1759024526036,0.766,3998.6,3998.5,0.25509781]
[1759024527347,0.766,3998.6,3998.5,3.46289781]
[1759024530544,0.766,3998.6,3998.5,4.60068394]
[1759024531139,0.3169,3998.6,3998.5,4.60068394]
[1759024532448,0.3169,3998.6,3998.5,5.05058394]
[1759024536749,0.1236,3999.0,3998.9,0.44986]
[1759024537045,0.1236,3999.0,3998.9,1.84064613]
[1759024537245,0.8866,3999.0,3998.9,0.253]
[1759024539050,0.4467,3999.0,3998.9,0.253]
[1759024539351,0.3231,3999.0,3998.9,0.253]
[1759024539546,0.3231,3999.4,3999.0,0.44984]
[1759024539848,0.4399,3999.2,3999.1,0.253]
[1759024540451,0.763,3999.2,3999.1,0.253]
[1759024542555,0.5378,3998.6,3998.5,3.20989781]
[1759024542756,0.5378,3998.6,3998.5,5.05058394]
[1759024543151,0.3231,3998.6,3998.5,5.05058394]
[1759024543657,0.5378,3998.6,3998.5,5.05058394]
[1759024544151,0.5378,3998.6,3998.5,4.79758394]
[1759024544346,0.5378,3998.6,3998.5,5.05058394]
[1759024545849,0.763,3998.6,3998.5,4.60068394]
[1759024546058,0.763,3998.6,3998.5,0.25509781]
[1759024550757,1.90078613,3998.6,3998.5,0.00209781]
[1759024550957,7.43205726,3998.6,3998.5,0.00209781]
[1759024551155,0.85437113,3998.6,3998.5,1.13988394]
[1759024551459,0.3231,3998.6,3998.5,1.13988394]
[1759024553866,0.3231,3998.6,3998.5,4.34768394]
[1759024554662,0.3231,3998.6,3998.5,4.62793723]
[1759024555767,0.3231,3998.6,3998.5,4.88093723]
[1759024556062,0.3231,3998.6,3998.5,4.62793723]
[1759024556258,0.763,3998.6,3998.5,4.88093723]
[1759024561082,0.763,3998.6,3998.5,0.25509781]
[1759024563219,1.29404193,3998.6,3998.5,0.00209781]
[1759024563373,1.29404193,3998.6,3998.5,0.25509781]
[1759024565477,1.74393193,3998.6,3998.5,0.25509781]
[1759024567474,1.29404193,3998.6,3998.5,0.25509781]
[1759024567685,1.74393193,3998.6,3998.5,0.70499781]
[1759024567977,1.74393193,3998.6,3998.5,0.45199781]
[1759024568973,1.74393193,3998.6,3998.5,0.00209781]
[1759024572972,0.763,3998.6,3998.5,1.87003723]
[1759024573280,3.53,3998.9,3998.8,0.44987]
[1759024573471,0.3222,3998.9,3998.8,2.12090942]
[1759024574880,0.5363,3998.9,3998.8,2.12090942]
[1759024577174,0.3222,3998.9,3998.8,2.12090942]
[1759024577383,0.3222,3999.2,3998.8,6.67103942]
[1759024577580,0.3222,3999.2,3999.1,1.41803942]
[1759024577783,0.3222,3999.2,3999.1,1.67103942]
[1759024578090,0.3222,3999.2,3999.1,2.12086942]
[1759024578780,0.5363,3999.2,3999.1,2.12086942]
[1759024579181,0.5363,3999.2,3999.1,5.32866942]
[1759024579384,0.3222,3999.2,3999.1,5.32866942]
[1759024580180,0.1236,3999.5,3999.4,0.4498]
[1759024580373,0.3508,4000.0,3999.9,0.44974]
[1759024580575,0.3508,4000.0,3999.9,0.70274]
[1759024580777,0.4589,4000.0,3999.9,0.70274]
[1759024581177,0.673,4000.0,3999.9,0.70274]
[1759024581378,0.8836,4000.0,3999.9,0.70274]
[1759024581682,0.8836,4000.0,3999.9,0.90239462]
[1759024581985,0.8836,4000.0,3999.9,0.70274]
[1759024583180,0.8836,4000.0,3999.9,0.90530753]
[1759024583986,0.8836,4000.0,3999.9,0.70274]
[1759024586889,0.8836,4000.0,3999.9,0.253]
[1759024589491,0.8836,4000.0,3999.9,0.70274]
[1759024591294,0.8836,4000.0,3999.9,0.44974]
[1759024591486,0.8836,4000.0,3999.9,0.70274]
[1759024595390,0.8836,4000.0,3999.9,0.253]
[1759024595797,0.8836,4000.0,3999.9,0.70274]
[1759024597894,0.8836,4000.0,3999.9,0.253]
[1759024598090,0.8836,4000.0,3999.9,0.70274]
[1759024604196,0.2245,3999.5,3999.4,3.2078]
[1759024604401,0.8765,3999.5,3999.4,3.9106]
[1759024607598,0.8765,3999.5,3999.2,0.44982]
[1759024607803,0.7438,3999.4,3999.3,0.253]
[1759024608001,0.4331,3999.4,3999.1,0.44983]
[1759024608204,0.1327,3999.5,3999.1,0.44983]
[1759024608205,0.7438,3999.3,3999.2,0.253]
[1759024611103,0.3107,3999.2,3999.0,1.41803942]
[1759024611298,0.7438,3999.1,3999.0,1.86787942]
[1759024611501,0.7438,3999.1,3999.0,2.12087942]
[1759024613908,0.7438,3999.1,3999.0,12.12087942]
[1759024614608,0.7438,3999.1,3999.0,11.84064846]
[1759024615211,0.1327,3999.5,3999.0,11.84064846]
[1759024615212,0.1327,3999.5,3999.0,11.39080846]
[1759024615406,0.3434,4000.0,3999.9,0.44974]
[1759024615601,0.1367,4000.0,3999.9,1.84054846]
[1759024615914,0.448,4000.0,3999.9,1.84054846]
[1759024616507,0.6547,4000.0,3999.9,1.84054846]
[1759024619609,0.8769,4000.0,3999.9,1.84054846]
[1759024621310,0.31427385,4000.3,4000.2,0.44971]
[1759024621617,0.31427385,4000.3,4000.2,1.84051846]
[1759024622515,0.74317385,4000.3,4000.2,1.84051846]
[1759024623604,0.74317385,4000.3,4000.2,1.58751846]
[1759024623810,0.74317385,4000.3,4000.2,1.84051846]
[1759024625814,0.74317385,4000.3,4000.2,1.13780846]
[1759024626010,0.74317385,4000.3,4000.2,1.39080846]
[1759024627110,0.31427385,4000.3,4000.2,1.39080846]
[1759024628312,0.74317385,4000.3,4000.2,1.84051846]
[1759024629115,0.52097385,4000.3,4000.2,1.84051846]
[1759024629814,0.31427385,4000.3,4000.2,1.84051846]
[1759024630513,0.135,4001.5,4001.2,0.92559]
[1759024630514,0.2252,4001.3,4001.2,0.92559]
[1759024630710,0.2252,4001.3,4001.2,2.52319846]
[1759024631512,0.22711754,4001.3,4001.2,2.52319846]
[1759024631813,0.22711754,4001.3,4001.2,2.07360846]
[1759024632016,1.585326,4001.3,4001.0,3.2078]
[1759024632217,0.4456,4000.6,4000.5,1.13780846]
[1759024632519,0.7708,4000.6,4000.5,1.13780846]
[1759024632814,1.22047,4000.6,4000.2,1.13780846]
[1759024633009,0.7708,4000.3,4000.2,1.13780846]
[1759024633415,0.7708,4000.3,4000.2,1.59760846]
[1759024635721,0.7708,4000.3,4000.2,1.82520846]
[1759024637723,0.44971,4000.2,4000.0,1.13780846]
[1759024638025,0.7708,4000.1,4000.0,1.57220846]
[1759024638227,0.7708,4000.1,4000.0,1.82520846]
[1759024646026,0.7708,4000.1,4000.0,0.2068]
[1759024646329,0.55,3999.6,3999.5,0.6837]
[1759024646525,0.55,3999.6,3999.5,0.9367]
[1759024646925,0.7635,3999.6,3999.5,0.9367]
[1759024647125,0.7635,3999.6,3999.5,0.6882]
[1759024647333,0.7635,3999.6,3999.5,1.82600846]
[1759024647630,0.7635,3999.6,3999.5,2.07450846]
[1759024649834,0.7635,3999.6,3999.5,1.82150846]
[1759024650031,0.7635,3999.6,3999.5,2.07450846]
[1759024650532,0.55,3999.6,3999.5,2.07450846]
[1759024651236,0.55,3999.6,3999.5,1.82150846]
[1759024651438,0.55,3999.6,3999.5,2.07450846]
[1759024651735,0.55,3999.6,3999.5,2.52429846]
[1759024652629,0.55,3999.6,3999.5,2.07450846]
[1759024653638,0.55,3999.6,3999.5,1.82150846]
[1759024653933,0.55,3999.6,3999.5,2.07450846]
[1759024656638,0.55,3999.6,3999.5,2.52429846]
[1759024656834,0.3295,3999.6,3999.5,2.52429846]
[1759024658840,0.55,3999.6,3999.5,2.27129846]
[1759024659141,0.55,3999.6,3999.5,2.07450846]
[1759024659341,0.55,3999.6,3999.5,2.52429846]
[1759024666443,0.7635,3999.6,3999.5,1.57300846]
[1759024666746,0.55,3999.1,3999.0,10.6837]
[1759024666940,0.55,3999.1,3999.0,10.9367]
[1759024667341,0.3295,3999.1,3999.0,11.38654]
[1759024667646,0.3295,3999.1,3999.0,10.9367]
[1759024667836,0.3295,3999.1,3999.0,12.52434846]
[1759024668446,0.55,3999.1,3999.0,10.6837]
[1759024668642,0.7635,3999.1,3999.0,10.6882]
[1759024668954,0.7635,3999.1,3999.0,10.9367]
[1759024672445,0.55,3999.1,3999.0,10.9367]
[1759024672745,0.3295,3999.1,3999.0,10.9367]
[1759024673040,0.55,3999.1,3999.0,10.9367]
[1759024673441,0.55,3999.1,3999.0,11.38654]
[1759024673948,1.21333,3999.1,3999.0,10.4352]
[1759024674447,1.21333,3999.1,3999.0,10.6882]
[1759024674649,0.7635,3999.1,3999.0,10.6882]
[1759024675635,1.21333,3999.1,3999.0,10.6882]
[1759024677551,0.7635,3999.1,3999.0,11.13804]
[1759024679847,0.7635,3999.1,3999.0,11.38834]
[1759024682648,1.21333,3999.1,3999.0,10.9385]
[1759024683550,1.21333,3999.1,3999.0,10.6882]
[1759024684443,1.21333,3999.1,3999.0,10.4352]
[1759024684647,1.74182548,3999.1,3999.0,10.0]
[1759024684849,6.74182548,3999.1,3999.0,10.0]
[1759024685038,6.74182548,3999.1,3999.0,9.5]
[1759024686543,6.29199548,3999.1,3999.0,9.9169]
[1759024686742,3.65762,3999.3,3999.0,9.9169]
[1759024686743,3.2078,3999.3,3999.2,0.86672]
[1759024686953,3.2078,3999.3,3999.2,1.37002]
[1759024687156,3.99591,3999.3,3999.2,1.37002]
[1759024687348,3.5461,3999.3,3999.2,1.37002]
[1759024687846,0.3383,3999.3,3999.2,1.37002]
[1759024688353,0.5602,3999.3,3999.2,1.37002]
[1759024692751,0.3383,3999.3,3999.2,1.37002]
[1759024692953,3.2078,3999.7,3999.5,0.6747]
[1759024692954,0.44978,3999.6,3999.5,0.6747]
[1759024693147,0.97832908,3999.6,3999.5,0.6747]
[1759024693350,1.52662908,3999.6,3999.5,0.6747]
[1759024694047,1.52662908,3999.6,3999.5,0.4261]
[1759024694048,1.74512908,3999.6,3999.5,0.4261]
[1759024697154,1.74512908,3999.6,3999.0,9.7078]
[1759024697155,0.3283,3999.3,3999.0,9.7078]
[1759024697349,0.7668,3999.1,3999.0,9.753]
[1759024697548,0.7668,3999.1,3999.0,10.1791]
[1759024697852,0.7668,3999.1,3999.0,10.4277]
[1759024698247,1.29597443,3999.1,3999.0,10.4277]
[1759024699456,1.29597443,3999.1,3999.0,9.5]
[1759024701766,1.29597443,3999.1,3999.0,9.7078]
[1759024702165,0.85747443,3999.1,3999.0,10.1747]
[1759024702666,1.07747443,3999.1,3999.0,10.1747]
[1759024703664,1.29597443,3999.1,3999.0,10.1747]
[1759024707759,0.52917443,3999.1,3999.0,10.1747]
[1759024708065,0.52917443,3999.1,3999.0,10.4277]
[1759024708561,0.52917443,3999.1,3999.0,10.87754]
[1759024709362,0.97900443,3999.1,3999.0,10.87754]
[1759024709772,1.28840443,3999.1,3999.0,10.87754]
[1759024710161,0.83857443,3999.1,3999.0,10.87754]
[1759024710562,1.28840443,3999.1,3999.0,10.87754]
[1759024711165,0.83857443,3999.1,3999.0,10.87754]
[1759024711376,0.52917443,3999.1,3999.0,10.87754]
[1759024711560,0.97900443,3999.1,3999.0,10.87754]
[1759024712265,0.52917443,3999.1,3999.0,10.87754]
[1759024712466,0.97900443,3999.1,3999.0,10.87754]
[1759024712676,0.52917443,3999.1,3999.0,10.87754]
[1759024712878,8.39456716,3999.1,3999.0,4.945e-05]
[1759024713068,1.19449,3998.6,3998.5,0.00209781]
[1759024713268,1.19449,3998.6,3997.8,0.3402]
[1759024713269,1.19457,3997.9,3997.8,0.5498]
[1759024713474,1.19457,3997.9,3997.8,0.7742]
[1759024713475,1.72374443,3997.9,3997.8,0.7742]
[1759024713970,1.19459,3997.7,3997.6,0.6338]
[1759024714174,4.40553363,3997.7,3997.6,0.55206821]
[1759024714577,4.40553363,3997.7,3997.6,0.77646821]
[1759024718579,0.00314363,3997.7,3997.6,5.77646821]
[1759024718986,0.00314363,3997.7,3997.6,0.77646821]
[1759024719889,0.00314363,3997.7,3997.6,7.19443094]
[1759024720696,0.00314363,3997.7,3997.6,2.19443094]
[1759024723695,0.00314363,3997.7,3997.6,2.44743094]
[1759024725584,0.74774363,3997.7,3997.6,0.77646821]
[1759024725779,0.74774363,3997.7,3997.6,0.80506821]
[1759024726286,0.74774363,3997.7,3997.6,1.02946821]
[1759024731296,0.74774363,3997.7,3997.6,0.77646821]
[1759024732595,1.19773363,3997.7,3997.6,0.77646821]
[1759024733490,0.74774363,3997.7,3997.6,1.22646821]
[1759024733714,0.00314363,3997.7,3997.6,2.64443094]
[1759024733998,0.00314363,3997.7,3997.6,2.19443094]
[1759024734194,0.45313363,3997.7,3997.6,2.64443094]
[1759024734493,0.00314363,3997.7,3997.6,2.64443094]
[1759024734998,3.9856,3998.9,3998.8,0.7723]
[1759024735195,3.9856,3998.9,3998.8,0.253]
[1759024735393,3.9856,3998.9,3998.8,0.4788]
[1759024735700,3.9856,3998.9,3998.8,0.8036]
[1759024735905,3.98842215,3998.9,3998.8,0.8036]
[1759024736996,3.98842215,3998.9,3998.8,1.0253]
[1759024739505,0.78062215,3998.9,3998.8,1.0253]
[1759024740099,0.00282215,3998.9,3998.8,2.16353655]
[1759024740489,0.21872215,3998.9,3998.8,2.16353655]
[1759024740690,0.55632215,3998.9,3998.8,2.16353655]
[1759024741095,0.78062215,3998.9,3998.8,2.16353655]
[1759024741309,1.30902426,3998.9,3998.8,2.16353655]
[1759024741694,1.30902426,3998.9,3998.8,1.0253]
[1759024742601,1.30902426,3998.9,3998.8,0.253]
[1759024742602,4.51682426,3998.9,3998.8,0.253]
[1759024742804,4.51682426,3998.9,3998.8,1.0253]
[1759024743096,4.51682426,3998.9,3998.8,0.253]
[1759024743301,0.4402,3998.7,3998.6,0.67568]
[1759024743505,0.7778,3998.7,3998.6,1.25348]
[1759024743802,0.7778,3998.7,3998.6,1.47518]
[1759024748601,0.5535,3998.7,3998.6,1.47518]
[1759024748800,0.00282215,3998.9,3998.6,1.47518]
[1759024748801,0.00282215,3998.9,3998.8,1.22217]
[1759024749010,0.00282215,3998.9,3998.8,2.36040655]
[1759024749599,0.22582215,3998.9,3998.8,2.36040655]
[1759024750100,0.22582215,3998.9,3998.8,0.7723]
[1759024750101,4.52205882,3998.9,3998.8,0.7723]
[1759024750808,0.7803,3998.6,3998.5,0.65999]
[1759024751198,0.7803,3998.6,3998.5,1.23839]
[1759024751910,0.7803,3998.6,3998.5,1.46359]
[1759024753109,0.7803,3998.6,3998.5,1.59859]
[1759024755508,0.7803,3998.6,3998.5,1.46359]
[1759024758005,0.7803,3998.6,3998.5,1.0137]
[1759024758407,1.23019,3998.6,3998.5,1.4636]
[1759024758708,1.23019,3998.6,3998.5,1.0137]
[1759024760318,1.76190234,3998.6,3998.5,1.4636]
[1759024766821,1.76190234,3998.6,3998.5,1.0137]
[1759024767424,1.76190234,3998.6,3998.5,1.4636]
[1759024768325,1.31201234,3998.6,3998.5,1.6001]
[1759024769623,1.76190234,3998.6,3998.5,1.6001]
[1759024770722,1.76190234,3998.6,3998.5,1.1502]
[1759024771829,1.76190234,3998.6,3998.5,1.6001]
[1759024772330,1.76190234,3998.6,3998.5,1.0137]
[1759024774032,1.76190234,3998.6,3998.5,1.4636]
[1759024774632,1.31201234,3998.6,3998.5,1.4636]
[1759024775233,1.76190234,3998.6,3998.5,1.4636]
[1759024775636,1.76190234,3998.6,3998.5,1.0137]
[1759024781036,1.76190234,3998.6,3998.5,2.15193655]
[1759024781234,1.76190234,3998.6,3998.5,2.60183655]
[1759024782939,1.76190234,3998.6,3998.5,0.7607]
[1759024783141,1.76190234,3998.6,3998.5,1.0127]
[1759024783441,1.76190234,3998.6,3998.5,1.4626]
[1759024785746,1.76190234,3998.6,3998.5,0.252]
[1759024785944,1.19752,3998.3,3998.2,0.5533]
[1759024786239,1.72923234,3998.3,3998.2,1.25523]
[1759024786543,0.53171234,3998.3,3998.2,1.46363]
[1759024786747,0.98329,3998.6,3998.5,0.4329]
[1759024786951,1.51646382,3998.6,3998.5,0.7617]
[1759024787244,1.73066382,3998.6,3998.5,0.7617]
[1759024797042,1.73066382,3998.6,3998.5,0.5533]
[1759024797236,1.73066382,3998.6,3997.9,3.2078]
[1759024797237,1.22115,3998.1,3998.0,0.22]
[1759024797440,1.22115,3998.1,3998.0,0.472]
[1759024797441,1.75432382,3998.1,3998.0,0.472]
[1759024797648,1.75432382,3998.1,3998.0,0.794]
[1759024800252,1.75432382,3998.1,3997.6,0.22226821]
[1759024800253,1.2212,3997.7,3997.6,0.22226821]
[1759024800453,1.75369376,3997.7,3997.6,0.47426821]
[1759024800750,1.75369376,3997.7,3997.6,0.00226821]
[1759024801149,0.8963,3997.5,3997.4,1.0105]
[1759024801350,0.7712,3997.5,3997.4,1.0105]
[1759024801549,0.7712,3997.5,3997.4,0.7585]
[1759024802154,0.7712,3997.5,3997.4,0.7613049]
[1759024802953,0.8963,3997.5,3997.4,0.7613049]
[1759024803254,0.7712,3996.9,3996.8,1.85535308]
[1759024803453,0.7712,3996.9,3996.8,2.10735308]
[1759024803848,0.7712,3996.9,3996.8,2.42935308]
[1759024804051,0.5479,3997.2,3997.1,0.88657]
[1759024804358,0.5479,3997.5,3997.4,0.7585]
[1759024804657,1.30376124,3997.5,3997.4,0.2585]
[1759024804855,1.30376124,3997.5,3997.4,0.22]
[1759024804856,1.87888124,3997.5,3997.4,0.22]
[1759024805052,1.42886124,3997.5,3997.4,0.22]
[1759024805257,0.3318,3997.5,3997.4,1.85535308]
[1759024805450,1.34627,3998.0,3997.9,0.22]
[1759024805846,0.8963,3998.0,3997.9,0.4365]
[1759024806249,0.3318,3997.7,3997.4,1.41885308]
[1759024806454,0.1251,3997.5,3997.4,1.86888308]
[1759024806653,0.4569,3997.5,3997.4,2.55738308]
[1759024806952,0.4569,3997.5,3997.4,2.73148308]
[1759024809854,0.673,3997.5,3997.4,2.73148308]
[1759024814665,0.4569,3997.5,3997.4,2.73148308]
[1759024820069,0.6834,3997.5,3997.4,2.73148308]
[1759024824467,0.6834,3997.5,3997.4,2.30538308]
[1759024824671,0.6834,3997.5,3997.4,2.55738308]
[1759024824672,0.8941,3997.5,3997.4,2.55738308]
[1759024825074,1.34412,3997.5,3997.4,2.55738308]
[1759024825374,1.34412,3997.5,3997.4,0.6885]
[1759024826873,0.65925,3997.2,3997.1,3.41681315]
[1759024827175,0.65925,3997.2,3997.1,0.46101315]
[1759024827176,1.20535,3997.2,3997.1,0.46101315]
[1759024827681,1.20535,3997.2,3997.1,0.68221315]
[1759024827973,1.20535,3997.2,3997.1,0.43021315]
[1759024828476,1.20535,3997.2,3997.1,1.30647315]
[1759024828477,0.7553,3997.2,3997.1,1.30647315]
[1759024828777,0.7553,3997.2,3997.1,2.72532623]
[1759024830576,1.20535,3997.2,3997.1,2.27526623]
[1759024831276,1.20535,3997.2,3997.1,2.72532623]
[1759024831479,1.20535,3997.2,3997.1,2.27526623]
[1759024831677,1.20535,3997.2,3997.1,2.10106623]
[1759024831976,1.20535,3997.2,3997.1,1.84906623]
[1759024832277,1.20535,3997.2,3997.1,2.10106623]
[1759024833177,1.20535,3997.2,3997.1,0.68221315]
[1759024834278,1.20535,3997.2,3997.1,0.00191315]
[1759024834476,1.20535,3997.2,3997.1,0.25391315]
[1759024834677,1.20535,3997.2,3997.1,0.46101315]
[1759024835271,0.7553,3997.2,3997.1,0.46101315]
[1759024835879,0.3354,3997.2,3997.1,2.27526623]
[1759024836781,0.3354,3997.2,3997.1,2.72532623]
[1759024836983,0.5446,3997.2,3997.1,2.72532623]
[1759024838481,0.3354,3997.2,3997.1,2.72532623]
[1759024839481,0.5446,3997.2,3997.1,2.72532623]
[1759024839982,0.5446,3997.2,3997.1,2.27526623]
[1759024840182,0.5446,3997.2,3997.1,2.10106623]
[1759024840783,0.5446,3997.2,3997.1,2.55112623]
[1759024842378,0.5446,3997.2,3997.1,1.13227315]
[1759024842583,0.5446,3997.2,3997.1,2.55112623]
[1759024844087,0.99465,3997.2,3997.1,2.55112623]
[1759024844586,0.5446,3997.2,3997.1,2.55112623]
[1759024846083,0.5446,3997.2,3997.1,2.10106623]
[1759024846288,0.7553,3997.2,3997.1,2.10106623]
[1759024847984,0.7553,3997.2,3997.1,2.55112623]
[1759024853194,0.7553,3997.2,3997.1,2.72532623]
[1759024855100,0.5446,3997.2,3997.1,2.72532623]
[1759024857391,0.89532,3997.5,3997.4,0.6073]
[1759024857595,1.42829091,3997.5,3997.4,0.8593]
[1759024858289,1.64399091,3997.5,3997.4,0.8593]
[1759024858597,1.64399091,3997.5,3997.4,1.99805975]
[1759024859091,0.97827091,3997.5,3997.4,2.44808975]
[1759024859293,0.3202,3997.5,3997.4,2.44808975]
[1759024863093,0.3202,3997.5,3997.4,5.65588975]
[1759024865394,3.2078,3998.3,3997.4,5.65588975]
[1759024865395,3.2078,3998.3,3998.2,0.88294]
[1759024865696,0.1251,3998.5,3998.4,0.6073]
[1759024865697,0.3408,3998.5,3998.4,0.6073]
[1759024865898,0.87390088,3998.5,3998.4,0.8593]
[1759024866097,1.19410088,3998.5,3998.4,0.8593]
[1759024866899,0.661,3998.5,3998.4,0.8593]
[1759024868494,0.661,3998.5,3998.4,4.0671]
[1759024869096,0.4453,3998.5,3998.4,4.0671]
[1759024869297,0.00282215,3998.9,3998.8,0.6073]
[1759024869298,0.21852215,3998.9,3998.8,0.6073]
[1759024869494,0.21852215,3998.9,3998.8,2.19751933]
[1759024869693,0.54372215,3998.9,3998.8,1.99805975]
[1759024872605,0.32802215,3998.9,3998.8,1.99805975]
[1759024872806,0.32802215,3998.9,3998.8,2.20137769]
[1759024874205,0.1295,3999.5,3999.3,0.6298]
[1759024874206,0.3252,3999.4,3999.3,0.6298]
[1759024874401,0.3252,3999.4,3999.3,2.02055975]